fUSD/lending_fUSD_20250507
["ID","MTS","AMOUNT","RATE_DAILY","PERIOD"]
[360192597,1746614799532,-468.74,0.00019516,2]
[360192598,1746614799742,-2795.86,0.00019516,2]
[360192599,1746614799767,-450.0,0.00019516,2]
[360192600,1746614799790,-450.0,0.00019516,2]
[360192601,1746614799815,-522.38,0.00019516,2]
[360192602,1746614799838,-450.0,0.00019516,2]
[360192603,1746614799861,-540.25,0.00019516,2]
[360192604,1746614799886,-450.0,0.00019516,2]
[360192605,1746614799910,-1214.17,0.00019516,2]
[360192606,1746614799932,-1214.17,0.00019516,2]
[360192607,1746614799956,-450.0,0.00019516,2]
[360192608,1746614799979,-862.74,0.00019516,2]
[360192609,1746614800003,-890.92,0.00019516,2]
[360192610,1746614800025,-500.29,0.00019516,2]
[360192611,1746614800047,-450.0,0.00019516,2]
[360192612,1746614800069,-450.0,0.00019516,2]
[360192613,1746614800093,-587.19,0.00019516,2]
[360192614,1746614800116,-450.0,0.00019516,2]
[360192615,1746614800137,-1264.98,0.00019516,2]
[360192616,1746614800160,-450.0,0.00019516,2]
[360192617,1746614800183,-1264.98,0.00019516,2]
[360192618,1746614800205,-450.0,0.00019516,2]
[360192619,1746614800228,-450.0,0.00019516,2]
[360192620,1746614800250,-278.14677923,0.00019516,2]
[360192621,1746614800273,-586.43,0.00019516,2]
[360192622,1746614800296,-503.33,0.00019516,2]
[360192623,1746614800318,-450.0,0.00019516,2]
[360192624,1746614800342,-1695.43,0.00019516,2]
[360192625,1746614800364,-450.0,0.00019516,2]
[360192626,1746614800387,-1826.21,0.00019516,2]
[360192627,1746614800409,-450.0,0.00019516,2]
[360192628,1746614800432,-450.0,0.00019516,2]
[360192629,1746614800454,-518.51,0.00019516,2]
[360192630,1746614800476,-706.13,0.00019516,2]
[360192631,1746614800500,-706.13,0.00019516,2]
[360192632,1746614800523,-450.0,0.00019516,2]
[360192633,1746614800547,-450.0,0.00019516,2]
[360192634,1746614800569,-450.0,0.00019516,2]
[360192635,1746614800593,-450.0,0.00019516,2]
[360192636,1746614800616,-450.0,0.00019516,2]
[360192637,1746614800639,-552.32,0.00019516,2]
[360192638,1746614800663,-552.32,0.00019516,2]
[360192639,1746614800685,-769.64,0.00019516,2]
[360192640,1746614800709,-769.64,0.00019516,2]
[360192641,1746614800731,-151.0,0.00019516,2]
[360192642,1746614800754,-544.16,0.00019516,2]
[360192643,1746614800776,-151.0,0.00019516,2]
[360192644,1746614800799,-292.423693,0.00019516,2]
[360192645,1746614800825,-1391.75,0.00019516,2]
[360192646,1746614800848,-1374.23,0.00019516,2]
[360192647,1746614800875,-1374.23,0.00019516,2]
[360192648,1746614800900,-450.0,0.00019516,2]
[360192649,1746614800925,-526.61,0.00019516,2]
[360192650,1746614800949,-450.0,0.00019516,2]
[360192651,1746614800973,-450.0,0.00019516,2]
[360192652,1746614800997,-467.05250635,0.00019516,2]
[360192653,1746614801021,-151.0,0.00019516,2]
[360192654,1746614801045,-668.65185757,0.00019516,2]
[360192655,1746614801067,-151.0,0.00019517,2]
[360192656,1746614801090,-151.0,0.00019517,2]
[360192657,1746614801112,-151.0,0.00019517,2]
[360192658,1746614801134,-153.545096,0.00019517,2]
[360192659,1746614801158,-151.0,0.00019517,2]
[360192660,1746614801181,-153.076613,0.00019517,2]
[360192661,1746614801208,-151.0,0.00019517,2]
[360192662,1746614801230,-151.0,0.00019517,2]
[360192663,1746614801253,-151.0,0.00019517,2]
[360192664,1746614801276,-151.0,0.00019517,2]
[360192665,1746614801299,-151.0,0.00019517,2]
[360192666,1746614801323,-151.0,0.00019517,2]
[360192667,1746614801348,-151.0,0.00019517,2]
[360192668,1746614801372,-151.0,0.00019517,2]
[360192669,1746614801395,-151.0,0.00019517,2]
[360192670,1746614801420,-279.2934,0.00019517,2]
[360192671,1746614801445,-477.39854987,0.00019517,2]
[360192672,1746614801469,-1667.709225,0.00019517,2]
[360192673,1746614801492,-1667.709225,0.00019517,2]
[360192674,1746614801516,-1667.709225,0.00019517,2]
[360192675,1746614801542,-1667.709225,0.00019517,2]
[360192676,1746614801565,-151.0,0.00019517,2]
[360192677,1746614801589,-151.0,0.00019517,2]
[360192678,1746614801614,-151.0,0.00019517,2]
[360192679,1746614801638,-151.0,0.00019517,2]
[360192680,1746614801662,-151.0,0.00019517,2]
[360192681,1746614801686,-450.0,0.00019517,2]
[360192682,1746614801710,-450.0,0.00019517,2]
[360192683,1746614801734,-540.0,0.00019517,2]
[360192684,1746614801757,-151.0,0.00019517,2]
[360192685,1746614801784,-151.0,0.00019517,2]
[360192686,1746614801808,-151.0,0.00019517,2]
[360192687,1746614801835,-151.0,0.00019517,2]
[360192688,1746614801858,-151.0,0.00019517,2]
[360192689,1746614801880,-151.0,0.00019517,2]
[360192690,1746614801905,-151.0,0.00019517,2]
[360192691,1746614801928,-151.0,0.00019517,2]
[360192692,1746614801950,-151.0,0.00019517,2]
[360192693,1746614801972,-151.0,0.00019517,2]
[360192694,1746614801996,-276.594383,0.00019517,2]
[360192695,1746614802019,-450.0,0.00019517,2]
[360192696,1746614802042,-475.88,0.00019517,2]
[360192697,1746614802064,-151.0,0.00019517,2]
[360192698,1746614802090,-152.263885,0.00019517,2]
[360192699,1746614802114,-789.569667,0.00019517,2]
[360192700,1746614802137,-789.569667,0.00019517,2]
[360192701,1746614802162,-789.569667,0.00019517,2]
[360192702,1746614802186,-789.569667,0.00019517,2]
[360192703,1746614802211,-789.569667,0.00019517,2]
[360192704,1746614802237,-789.569667,0.00019517,2]
[360192705,1746614802260,-789.569667,0.00019517,2]
[360192706,1746614802285,-789.569667,0.00019517,2]
[360192707,1746614802309,-789.569667,0.00019517,2]
[360192708,1746614802332,-789.569667,0.00019517,2]
[360192709,1746614802356,-2000.0,0.00019517,2]
[360192710,1746614802379,-200.0,0.00019517,2]
[360192711,1746614802402,-151.0,0.00019517,2]
[360192712,1746614802427,-151.0,0.00019517,2]
[360192713,1746614802450,-151.0,0.00019517,2]
[360192714,1746614802473,-151.0,0.00019517,2]
[360192715,1746614802495,-151.0,0.00019517,2]
[360192716,1746614802518,-151.0,0.00019517,2]
[360192717,1746614802541,-151.0,0.00019517,2]
[360192718,1746614802563,-151.0,0.00019517,2]
[360192719,1746614802586,-151.0,0.00019517,2]
[360192720,1746614802609,-151.0,0.00019517,2]
[360192721,1746614802631,-314.85401755,0.00019517,2]
[360192722,1746614802654,-151.0,0.00019517,2]
[360192723,1746614802677,-151.0,0.00019517,2]
[360192724,1746614802700,-167.569327,0.00019517,2]
[360192725,1746614802724,-752.37,0.00019517,2]
[360192726,1746614802747,-752.37,0.00019517,2]
[360192727,1746614802772,-151.0,0.00019517,2]
[360192728,1746614802796,-151.0,0.00019517,2]
[360192729,1746614802823,-151.0,0.00019517,2]
[360192730,1746614802847,-450.0,0.00019517,2]
[360192731,1746614802871,-151.0,0.00019517,2]
[360192732,1746614802894,-151.0,0.00019517,2]
[360192733,1746614802918,-450.0,0.00019517,2]
[360192734,1746614802941,-151.0,0.00019517,2]
[360192735,1746614802963,-824.65,0.00019517,2]
[360192736,1746614802987,-1103.82,0.00019517,2]
[360192737,1746614803010,-805.85,0.00019517,2]
[360192738,1746614803034,-151.0,0.00019517,2]
[360192739,1746614803057,-156.311469,0.00019517,2]
[360192740,1746614803083,-151.0,0.00019517,2]
[360192741,1746614803106,-906.9,0.00019517,2]
[360192742,1746614803129,-157.305426,0.00019517,2]
[360192743,1746614803152,-450.0,0.00019517,2]
[360192744,1746614803176,-157.305426,0.00019517,2]
[360192745,1746614803199,-157.305426,0.00019517,2]
[360192746,1746614803223,-512.42,0.00019517,2]
[360192747,1746614803408,-157.305426,0.00019517,2]
[360192748,1746614803437,-157.305426,0.00019517,2]
[360192749,1746614803462,-450.0,0.00019517,2]
[360192750,1746614803486,-157.305426,0.00019517,2]
[360192751,1746614803509,-450.0,0.00019517,2]
[360192752,1746614803532,-450.0,0.00019517,2]
[360192753,1746614803555,-450.0,0.00019517,2]
[360192754,1746614803578,-745.46,0.00019517,2]
[360192755,1746614803600,-450.0,0.00019517,2]
[360192756,1746614803623,-450.0,0.00019517,2]
[360192757,1746614803647,-748.09,0.00019517,2]
[360192758,1746614803670,-151.0,0.00019517,2]
[360192759,1746614803694,-510.55,0.00019517,2]
[360192760,1746614803717,-151.0,0.00019517,2]
[360192761,1746614803740,-151.0,0.00019517,2]
[360192762,1746614803763,-450.0,0.00019517,2]
[360192763,1746614803786,-450.0,0.00019517,2]
[360192764,1746614803810,-450.0,0.00019517,2]
[360192765,1746614803836,-450.0,0.00019517,2]
[360192766,1746614803859,-450.0,0.00019517,2]
[360192767,1746614803882,-450.0,0.00019517,2]
[360192768,1746614803907,-450.0,0.00019517,2]
[360192769,1746614803930,-450.0,0.00019517,2]
[360192770,1746614803952,-199.011719,0.00019517,2]
[360192771,1746614803975,-199.011719,0.00019517,2]
[360192772,1746614803997,-450.0,0.00019517,2]
[360192773,1746614804020,-199.011719,0.00019517,2]
[360192774,1746614804043,-450.0,0.00019517,2]
[360192775,1746614804065,-199.011719,0.00019517,2]
[360192776,1746614804089,-450.0,0.00019517,2]
[360192777,1746614804112,-151.0,0.00019517,2]
[360192778,1746614804135,-151.0,0.00019517,2]
[360192779,1746614804158,-151.0,0.00019517,2]
[360192780,1746614804182,-151.0,0.00019517,2]
[360192781,1746614804206,-230.065659,0.00019517,2]
[360192782,1746614804228,-151.0,0.00019517,2]
[360192783,1746614804252,-151.0,0.00019517,2]
[360192784,1746614804277,-151.0,0.00019517,2]
[360192785,1746614804301,-151.0,0.00019517,2]
[360192786,1746614804323,-151.0,0.00019517,2]
[360192787,1746614804347,-151.0,0.00019517,2]
[360192788,1746614804370,-182.659124,0.00019517,2]
[360192789,1746614804392,-151.0,0.00019517,2]
[360192790,1746614804415,-175.506003,0.00019517,2]
[360192791,1746614804438,-450.0,0.00019517,2]
[360192792,1746614804461,-450.0,0.00019517,2]
[360192793,1746614804484,-475.99239067,0.00019517,2]
[360192794,1746614804507,-450.0,0.00019517,2]
[360192795,1746614804530,-450.0,0.00019517,2]
[360192796,1746614804553,-450.0,0.00019517,2]
[360192797,1746614804576,-4364.202,0.00019517,2]
[360192798,1746614804600,-201.038579,0.00019517,2]
[360192799,1746614804623,-450.0,0.00019517,2]
[360192800,1746614804649,-450.0,0.00019517,2]
[360192801,1746614804673,-450.0,0.00019517,2]
[360192802,1746614804697,-500.0,0.00019517,2]
[360192803,1746614804720,-450.0,0.00019517,2]
[360192804,1746614804743,-489.2348352,0.00019517,2]
[360192805,1746614804767,-469.39,0.00019517,2]
[360192806,1746614804789,-151.0,0.00019517,2]
[360192807,1746614804815,-525.82,0.00019517,2]
[360192808,1746614804838,-151.0,0.00019517,2]
[360192809,1746614804860,-505.80963242,0.00019517,2]
[360192810,1746614804883,-250.824458,0.00019517,2]
[360192811,1746614804910,-151.0,0.00019517,2]
[360192812,1746614804932,-151.0,0.00019517,2]
[360192813,1746614804955,-151.0,0.00019517,2]
[360192814,1746614804978,-1152.2,0.00019517,2]
[360192815,1746614805001,-325.280083,0.00019517,2]
[360192816,1746614805024,-325.280083,0.00019517,2]
[360192817,1746614805047,-325.280083,0.00019517,2]
[360192818,1746614805071,-325.280083,0.00019517,2]
[360192819,1746614805094,-325.280083,0.00019517,2]
[360192820,1746614805118,-325.280083,0.00019517,2]
[360192821,1746614805141,-151.0,0.00019517,2]
[360192822,1746614805164,-151.0,0.00019517,2]
[360192823,1746614805187,-151.0,0.00019517,2]
[360192824,1746614805210,-161.137611,0.00019517,2]
[360192825,1746614805233,-450.0,0.00019517,2]
[360192826,1746614805256,-161.137611,0.00019517,2]
[360192827,1746614805279,-161.137611,0.00019517,2]
[360192828,1746614805303,-559.23,0.00019517,2]
[360192829,1746614805328,-161.137611,0.00019517,2]
[360192830,1746614805350,-161.137611,0.00019517,2]
[360192831,1746614805372,-161.137611,0.00019517,2]
[360192832,1746614805396,-450.0,0.00019517,2]
[360192833,1746614805418,-509.8622321,0.00019517,2]
[360192834,1746614805442,-151.0,0.00019517,2]
[360192835,1746614805464,-151.0,0.00019517,2]
[360192836,1746614805486,-211.82674,0.00019517,2]
[360192837,1746614805508,-151.0,0.00019517,2]
[360192838,1746614805530,-151.0,0.00019517,2]
[360192839,1746614805552,-280.858325,0.00019517,2]
[360192840,1746614805574,-560.84,0.00019517,2]
[360192841,1746614805596,-450.0,0.00019517,2]
[360192842,1746614805619,-450.0,0.00019517,2]
[360192843,1746614805643,-454.51,0.00019517,2]
[360192844,1746614805668,-219.277398,0.00019517,2]
[360192845,1746614805692,-219.277398,0.00019517,2]
[360192846,1746614805714,-219.277398,0.00019517,2]
[360192847,1746614805737,-219.277398,0.00019517,2]
[360192848,1746614805761,-219.277398,0.00019517,2]
[360192849,1746614805785,-219.277398,0.00019517,2]
[360192850,1746614805811,-450.0,0.00019517,2]
[360192851,1746614805837,-209.28431494,0.00019517,2]
[360192852,1746614805861,-450.0,0.00019517,2]
[360192853,1746614805885,-155.605701,0.00019517,2]
[360192854,1746614805912,-155.605701,0.00019517,2]
[360192855,1746614805936,-155.605701,0.00019517,2]
[360192856,1746614805959,-155.605701,0.00019517,2]
[360192857,1746614805983,-155.605701,0.00019517,2]
[360192858,1746614806007,-155.605701,0.00019517,2]
[360192859,1746614806029,-717.55,0.00019517,2]
[360192860,1746614806052,-450.0,0.00019517,2]
[360192861,1746614806075,-563.56,0.00019517,2]
[360192862,1746614806099,-450.0,0.00019517,2]
[360192863,1746614806122,-208.209373,0.00019517,2]
[360192864,1746614806146,-208.209373,0.00019517,2]
[360192865,1746614806169,-208.209373,0.00019517,2]
[360192866,1746614806193,-450.0,0.00019517,2]
[360192867,1746614806219,-677.35,0.00019517,2]
[360192868,1746614806242,-450.0,0.00019517,2]
[360192869,1746614806266,-545.91,0.00019517,2]
[360192870,1746614806290,-1427.77,0.00019517,2]
[360192871,1746614806313,-1291.49,0.00019517,2]
[360192872,1746614806337,-360.0902548,0.00019517,2]
[360192873,1746614806360,-450.0,0.00019517,2]
[360192874,1746614806383,-450.0,0.00019517,2]
[360192875,1746614806407,-151.0,0.00019517,2]
[360192876,1746614806431,-151.0,0.00019517,2]
[360192877,1746614806455,-450.0,0.00019517,2]
[360192878,1746614806480,-1743.72,0.00019517,2]
[360192879,1746614806504,-151.0,0.00019517,2]
[360192880,1746614806528,-450.0,0.00019517,2]
[360192881,1746614806552,-151.0,0.00019517,2]
[360192882,1746614806575,-151.0,0.00019517,2]
[360192883,1746614806600,-151.0,0.00019517,2]
[360192884,1746614806624,-1019.86,0.00019517,2]
[360192885,1746614806648,-450.0,0.00019517,2]
[360192886,1746614806673,-1453.62,0.00019517,2]
[360192887,1746614806696,-1885.11,0.00019517,2]
[360192888,1746614806721,-151.0,0.00019517,2]
[360192889,1746614806746,-151.0,0.00019517,2]
[360192890,1746614806771,-805.8,0.00019517,2]
[360192891,1746614806795,-151.0,0.00019517,2]
[360192892,1746614806822,-450.0,0.00019517,2]
[360192893,1746614806847,-151.0,0.00019517,2]
[360192894,1746614806872,-450.0,0.00019517,2]
[360192895,1746614806896,-151.0,0.00019517,2]
[360192896,1746614806920,-151.0,0.00019517,2]
[360192897,1746614807108,-1750.11,0.00019517,2]
[360192898,1746614807132,-158.23024347,0.00019517,2]
[360192899,1746614807156,-450.0,0.00019517,2]
[360192900,1746614807182,-560.16,0.00019517,2]
[360192901,1746614807206,-450.0,0.00019517,2]
[360192902,1746614807230,-450.0,0.00019517,2]
[360192903,1746614807254,-151.0,0.00019517,2]
[360192904,1746614807276,-151.0,0.00019517,2]
[360192905,1746614807301,-541.87060825,0.00019517,2]
[360192906,1746614807325,-450.0,0.00019517,2]
[360192907,1746614807350,-1856.77,0.00019517,2]
[360192908,1746614807374,-3127.48,0.00019517,2]
[360192909,1746614807398,-450.0,0.00019517,2]
[360192910,1746614807422,-683.57,0.00019517,2]
[360192911,1746614807446,-504.81,0.00019517,2]
[360192912,1746614807472,-450.0,0.00019517,2]
[360192913,1746614807496,-34732.98,0.00019517,2]
[360192914,1746614807520,-70822.78,0.00019517,2]
[360192915,1746614807544,-1274.51,0.00019517,2]
[360192916,1746614807567,-450.0,0.00019517,2]
[360192917,1746614807590,-450.0,0.00019517,2]
[360192918,1746614807614,-450.0,0.00019517,2]
[360192919,1746614807636,-1140.0,0.00019517,2]
[360192920,1746614807659,-450.0,0.00019517,2]
[360192921,1746614807692,-450.0,0.00019517,2]
[360192922,1746614807720,-450.0,0.00019517,2]
[360192923,1746614807744,-575.04,0.00019517,2]
[360192924,1746614807768,-450.0,0.00019517,2]
[360192925,1746614807793,-9634.36,0.00019517,2]
[360192926,1746614807820,-151.0,0.00019517,2]
[360192927,1746614807845,-151.0,0.00019517,2]
[360192928,1746614807870,-450.0,0.00019517,2]
[360192929,1746614807894,-450.0,0.00019517,2]
[360192930,1746614807920,-804.49,0.00019517,2]
[360192931,1746614807945,-151.0,0.00019517,2]
[360192932,1746614807971,-151.0,0.00019517,2]
[360192933,1746614807998,-801.16,0.00019517,2]
[360192934,1746614808023,-866.48,0.00019517,2]
[360192935,1746614808049,-528.23498764,0.00019517,2]
[360192936,1746614808074,-825.77,0.00019517,2]
[360192937,1746614808099,-279.161329,0.00019517,2]
[360192938,1746614808124,-279.161329,0.00019517,2]
[360192939,1746614808149,-756.52,0.00019517,2]
[360192940,1746614808173,-450.0,0.00019517,2]
[360192941,1746614808198,-279.161329,0.00019517,2]
[360192942,1746614808223,-279.161329,0.00019517,2]
[360192943,1746614808252,-15626.93,0.00019517,2]
[360192944,1746614808277,-450.0,0.00019517,2]
[360192945,1746614808302,-450.0,0.00019517,2]
[360192946,1746614808329,-7498.86,0.00019517,2]
[360192947,1746614808355,-151.0,0.00019517,2]
[360192948,1746614808380,-387.93520438,0.00019517,2]
[360192949,1746614808410,-1285.39,0.00019517,2]
[360192950,1746614808437,-151.0,0.00019517,2]
[360192951,1746614808463,-151.0,0.00019517,2]
[360192952,1746614808488,-450.0,0.00019517,2]
[360192953,1746614808514,-151.0,0.00019517,2]
[360192954,1746614808538,-450.0,0.00019517,2]
[360192955,1746614808562,-450.0,0.00019517,2]
[360192956,1746614808588,-450.0,0.00019517,2]
[360192957,1746614808612,-1093.57,0.00019517,2]
[360192958,1746614808637,-814.49,0.00019517,2]
[360192959,1746614808662,-2009.91,0.00019517,2]
[360192960,1746614808687,-450.0,0.00019517,2]
[360192961,1746614808712,-653.21,0.00019517,2]
[360192962,1746614808736,-2795.86,0.00019517,2]
[360192963,1746614808760,-450.0,0.00019517,2]
[360192964,1746614808785,-1214.17,0.00019517,2]
[360192965,1746614808810,-587.19,0.00019517,2]
[360192966,1746614808837,-450.0,0.00019517,2]
[360192967,1746614808861,-1264.98,0.00019517,2]
[360192968,1746614808886,-586.43,0.00019517,2]
[360192969,1746614808912,-450.0,0.00019517,2]
[360192970,1746614808936,-450.0,0.00019517,2]
[360192971,1746614808960,-706.13,0.00019517,2]
[360192972,1746614808984,-450.0,0.00019517,2]
[360192973,1746614809010,-450.0,0.00019517,2]
[360192974,1746614809038,-552.32,0.00019517,2]
[360192975,1746614809063,-769.64,0.00019517,2]
[360192976,1746614809091,-544.16,0.00019517,2]
[360192977,1746614809117,-1374.23,0.00019517,2]
[360192978,1746614809142,-529.01586174,0.00019518,2]
[360192979,1746614809167,-277.682923,0.00019518,2]
[360192980,1746614809195,-151.0,0.00019518,2]
[360192981,1746614809221,-151.0,0.00019518,2]
[360192982,1746614809250,-151.0,0.00019518,2]
[360192983,1746614809276,-151.0,0.00019518,2]
[360192984,1746614809302,-151.0,0.00019518,2]
[360192985,1746614809329,-229.545638,0.00019518,2]
[360192986,1746614809356,-229.545638,0.00019518,2]
[360192987,1746614809382,-229.545638,0.00019518,2]
[360192988,1746614809410,-229.545638,0.00019518,2]
[360192989,1746614809439,-229.545638,0.00019518,2]
[360192990,1746614809467,-229.545638,0.00019518,2]
[360192991,1746614809495,-151.0,0.00019518,2]
[360192992,1746614809522,-151.0,0.00019518,2]
[360192993,1746614809549,-151.0,0.00019518,2]
[360192994,1746614809576,-151.0,0.00019518,2]
[360192995,1746614809603,-169.654862,0.00019518,2]
[360192996,1746614809630,-154.567911,0.00019518,2]
[360192997,1746614809657,-151.0,0.00019518,2]
[360192998,1746614809685,-151.0,0.00019518,2]
[360192999,1746614809712,-286.128882,0.00019518,2]
[360193000,1746614809740,-266.980785,0.00019518,2]
[360193001,1746614809768,-266.980785,0.00019518,2]
[360193002,1746614809794,-266.980785,0.00019518,2]
[360193003,1746614809822,-266.980785,0.00019518,2]
[360193004,1746614809848,-282.655956,0.00019518,2]
[360193005,1746614809875,-282.655956,0.00019518,2]
[360193006,1746614809902,-282.655956,0.00019518,2]
[360193007,1746614809929,-282.655956,0.00019518,2]
[360193008,1746614809956,-282.655956,0.00019518,2]
[360193009,1746614809982,-282.655956,0.00019518,2]
[360193010,1746614810008,-282.655956,0.00019518,2]
[360193011,1746614810033,-282.655956,0.00019518,2]
[360193012,1746614810058,-229.154177,0.00019518,2]
[360193013,1746614810083,-151.0,0.00019518,2]
[360193014,1746614810108,-151.0,0.00019518,2]
[360193015,1746614810134,-151.0,0.00019518,2]
[360193016,1746614810160,-151.0,0.00019518,2]
[360193017,1746614810189,-151.0,0.00019518,2]
[360193018,1746614810217,-151.0,0.00019518,2]
[360193019,1746614810246,-1667.709225,0.00019518,2]
[360193020,1746614810273,-1667.709225,0.00019518,2]
[360193021,1746614810301,-1667.709225,0.00019518,2]
[360193022,1746614810329,-1667.709225,0.00019518,2]
[360193023,1746614810355,-151.0,0.00019518,2]
[360193024,1746614810382,-151.0,0.00019518,2]
[360193025,1746614810408,-151.0,0.00019518,2]
[360193026,1746614810437,-152.796473,0.00019518,2]
[360193027,1746614810463,-789.569667,0.00019518,2]
[360193028,1746614810490,-789.569667,0.00019518,2]
[360193029,1746614810515,-151.0,0.00019518,2]
[360193030,1746614810540,-151.0,0.00019518,2]
[360193031,1746614810564,-199.011719,0.00019518,2]
[360193032,1746614810589,-199.011719,0.00019518,2]
[360193033,1746614810614,-151.0,0.00019518,2]
[360193034,1746614810638,-864.0,0.00019519,2]
[360193035,1746614810664,-229.545638,0.00019519,2]
[360193036,1746614810689,-229.545638,0.00019519,2]
[360193037,1746614810716,-151.0,0.00019519,2]
[360193038,1746614810741,-151.0,0.00019519,2]
[360193039,1746614810768,-789.569667,0.00019519,2]
[360193040,1746614810793,-789.569667,0.00019519,2]
[360193041,1746614810821,-151.0,0.00019519,2]
[360193042,1746614810846,-151.0,0.00019519,2]
[360193043,1746614810871,-1000.0,0.00019519,2]
[360193044,1746614810896,-1000.0,0.00019519,2]
[360193045,1746614810921,-1000.0,0.00019519,2]
[360193046,1746614811125,-1000.0,0.00019519,2]
[360193047,1746614811163,-1000.0,0.00019519,2]
[360193048,1746614811190,-1000.0,0.00019519,2]
[360193049,1746614811218,-1000.0,0.00019519,2]
[360193050,1746614811245,-1000.0,0.00019519,2]
[360193051,1746614811273,-1000.0,0.00019519,2]
[360193052,1746614811301,-1000.0,0.00019519,2]
[360193053,1746614811327,-1000.0,0.00019519,2]
[360193054,1746614811353,-1000.0,0.00019519,2]
[360193055,1746614811379,-1000.0,0.00019519,2]
[360193056,1746614811404,-1000.0,0.00019519,2]
[360193057,1746614811430,-1000.0,0.00019519,2]
[360193058,1746614811455,-1000.0,0.00019519,2]
[360193059,1746614811482,-1000.0,0.00019519,2]
[360193060,1746614811509,-1000.0,0.00019519,2]
[360193061,1746614811536,-1000.0,0.00019519,2]
[360193062,1746614811564,-1000.0,0.00019519,2]
[360193063,1746614811590,-1000.0,0.00019519,2]
[360193064,1746614811617,-1000.0,0.00019519,2]
[360193065,1746614811643,-226.5,0.00019519,2]
[360193066,1746614811670,-1000.0,0.00019519,2]
[360193067,1746614811696,-1000.0,0.00019519,2]
[360193068,1746614811721,-1000.0,0.00019519,2]
[360193069,1746614811747,-1000.0,0.00019519,2]
[360193070,1746614811772,-1000.0,0.00019519,2]
[360193071,1746614811801,-1000.0,0.00019519,2]
[360193072,1746614811832,-1000.0,0.00019519,2]
[360193073,1746614811860,-1000.0,0.00019519,2]
[360193074,1746614811887,-1000.0,0.00019519,2]
[360193075,1746614811915,-747.53624777,0.00019519,2]
[360193076,1746614811942,-198.165333,0.00019519,2]
[360193077,1746614811970,-151.0,0.00019519,2]
[360193078,1746614811998,-151.0,0.00019519,2]
[360193079,1746614812025,-151.0,0.00019519,2]
[360193080,1746614812052,-325.280083,0.00019519,2]
[360193081,1746614812079,-325.280083,0.00019519,2]
[360193082,1746614812106,-151.0,0.00019519,2]
[360193083,1746614812133,-161.137611,0.00019519,2]
[360193084,1746614812160,-161.137611,0.00019519,2]
[360193085,1746614812189,-151.0,0.00019519,2]
[360193086,1746614812220,-151.0,0.00019519,2]
[360193087,1746614812249,-151.0,0.00019519,2]
[360193088,1746614812277,-279.161329,0.00019519,2]
[360193089,1746614812304,-279.161329,0.00019519,2]
[360193090,1746614812331,-450.0,0.00019526,2]
[360193091,1746614812359,-470.09,0.00019526,2]
[360193092,1746614812386,-450.0,0.00019526,2]
[360193093,1746614812414,-890.92,0.00019526,2]
[360193094,1746614812441,-1695.43,0.00019526,2]
[360193095,1746614812467,-518.51,0.00019526,2]
[360193096,1746614812492,-526.61,0.00019526,2]